{"text_format":"1","workbook":"xlsx","n_sheets":20,"sheets":["Start","Project description","General information","Kind and main use","Building code","Main structure","Secondary structure","Load","Cause of failure","Failed member","Mode of damage","Type of damage","Quality control","Scale of damage","Progress of damage","Consequence","Indication","Mail","Results","Data"],"not_rendered":{"charts":0,"images":142,"macros":1,"external_links":0,"defined_names":0,"comments":0,"pivot_tables":0},"unopened":[],"bounds":{"document_bytes":16777216,"sheet_cells":100000,"rows_first":2000,"rows_last":500,"rows_between":2000,"halvings":0,"cell_chars":16384,"cell_head_chars":4096},"cells_cut":0,"cells_raw":0,"read":"whole","date_system":"1900"}

{"sheet":"Start","index":0,"n_rows":0,"n_cols":0,"rows_kept":0,"cut":false,"hidden":true,"merged":[]}

{"sheet":"Project description","index":1,"n_rows":0,"n_cols":0,"rows_kept":0,"cut":false,"hidden":true,"merged":[[2,0,2,7]]}

{"sheet":"General information","index":2,"n_rows":0,"n_cols":0,"rows_kept":0,"cut":false,"hidden":true,"merged":[]}

{"sheet":"Kind and main use","index":3,"n_rows":0,"n_cols":0,"rows_kept":0,"cut":false,"hidden":false,"merged":[]}

{"sheet":"Building code","index":4,"n_rows":0,"n_cols":0,"rows_kept":0,"cut":false,"hidden":true,"merged":[]}

{"sheet":"Main structure","index":5,"n_rows":0,"n_cols":0,"rows_kept":0,"cut":false,"hidden":true,"merged":[]}

{"sheet":"Secondary structure","index":6,"n_rows":0,"n_cols":0,"rows_kept":0,"cut":false,"hidden":true,"merged":[]}

{"sheet":"Load","index":7,"n_rows":0,"n_cols":0,"rows_kept":0,"cut":false,"hidden":true,"merged":[]}

{"sheet":"Cause of failure","index":8,"n_rows":17,"n_cols":14,"rows_kept":17,"cut":false,"hidden":true,"merged":[]}
[]
[]
[]
[]
[]
[]
[]
[]
[]
[]
[null,null,null,null,null,null,null,null,null,null,null,null," "]
[]
[]
[]
[]
[]
[null,null,null,null,null,null,null,null,null,null,null,null,null," "]

{"sheet":"Failed member","index":9,"n_rows":0,"n_cols":0,"rows_kept":0,"cut":false,"hidden":true,"merged":[]}

{"sheet":"Mode of damage","index":10,"n_rows":0,"n_cols":0,"rows_kept":0,"cut":false,"hidden":true,"merged":[]}

{"sheet":"Type of damage","index":11,"n_rows":0,"n_cols":0,"rows_kept":0,"cut":false,"hidden":true,"merged":[]}

{"sheet":"Quality control","index":12,"n_rows":100,"n_cols":4,"rows_kept":100,"cut":false,"hidden":true,"merged":[]}
[]
[]
[]
[]
[]
[]
[]
[]
[]
[]
[]
[]
[]
[]
[]
[]
[]
[]
[]
[]
[]
[]
[]
[]
[]
[]
[]
[]
[]
[]
[]
[]
[]
[]
[]
[]
[]
[]
[]
[]
[]
[]
[]
[]
[]
[]
[]
[]
[]
[]
[]
[]
[]
[]
[]
[]
[]
[]
[]
[]
[]
[]
[]
[]
[]
[]
[]
[]
[]
[]
[]
[]
[]
[]
[]
[]
[]
[]
[]
[]
[]
[]
[]
[]
[]
[]
[]
[]
[]
[]
[]
[]
[]
[]
[]
[]
[]
[]
[]
[null,null,null,"agasg<gfdsgsdfg"]

{"sheet":"Scale of damage","index":13,"n_rows":0,"n_cols":0,"rows_kept":0,"cut":false,"hidden":true,"merged":[]}

{"sheet":"Progress of damage","index":14,"n_rows":0,"n_cols":0,"rows_kept":0,"cut":false,"hidden":true,"merged":[]}

{"sheet":"Consequence","index":15,"n_rows":0,"n_cols":0,"rows_kept":0,"cut":false,"hidden":true,"merged":[]}

{"sheet":"Indication","index":16,"n_rows":0,"n_cols":0,"rows_kept":0,"cut":false,"hidden":true,"merged":[]}

{"sheet":"Mail","index":17,"n_rows":0,"n_cols":0,"rows_kept":0,"cut":false,"hidden":true,"merged":[]}

{"sheet":"Results","index":18,"n_rows":122,"n_cols":5,"rows_kept":122,"cut":false,"hidden":true,"merged":[[0,0,0,3]]}
["Results"]
[]
["Project description"]
[]
[null,"Project Name"]
[null,"Title",null,null,0]
[null,"First Name"]
[null,"Familie Name"]
[null,"Firm"]
[null,"Date [DD.MM.YYY]"]
[]
[]
["General Information about the entire Building"]
[]
[null,"Name of Construction"]
[null,"Country",null,null,0]
[null,"Region"]
[null,"Year of construction [YYYY]"]
[null,"Year of damage [YYYY]"]
[null,"Dimensions","Storeys"]
[null,null,"Length [m]"]
[null,null,"Width [m]"]
[null,null,"Height [m]"]
[null,"Number of occupants","Maximum"]
[null,null,"Average"]
[null,"Heating?"]
[]
[]
["Kind and main use of the building"]
[]
[null,"Typ of structure"]
[null,"Main use of the building"]
[]
[]
["Generation of the building codes and regulations"]
[]
[null,"Code family"]
[null,"Utilization class"]
[]
[]
["Short description of main structure"]
[]
[null,"Kind of main structure"]
[null,"Number of main structural elements"]
[null,"Dimensions of main structural elements","Span [m]"]
[null,null,"Height [m]"]
[null,null,"Width [m]"]
[null,null,"Curvature [°]"]
[]
[]
["Short description of secondary structure"]
[]
[null,"Kind of structure"]
[null,"Connection to main structural element"]
[]
[]
["Description of load (time of damage)"]
[]
[]
[]
["Description of the cause of failure"]
[]
[null,"Kind of failure"]
[null,"Human error","Which building phase?"]
[null,null,"Which working organisation?"]
[null,null,"Kind of error?"]
[null,null,"Which Occupational group is responsible for the error?"]
[null,"Uncontrollable action"]
[null,"State of the art"]
[]
[]
["Description of failed member / connection (primary damage)"]
[]
[null,"Type of structure","I"]
[null,null,"II"]
[null,"Failed material"]
[null,"Load bearing caracteristics of structural element"]
[null,"Location of structural element"]
[]
[]
["Mode of damage"]
[]
[null,"Mode of damage","I"]
[null,null,"II"]
[null,null,"III"]
[null,"Description of the mode of damage"]
[]
[]
["Type of damage"]
[]
[null,"Type of damage","I"]
[null,null,"II"]
[null,"if cracks","Depth [mm]"]
[null,null,"Width [mm]"]
[null,null,"Length [mm]"]
[null,"if deformation","Size [mm]"]
[null,"Description of the type of damage"]
[]
[]
["Description of quality control"]
[]
[]
["Schale of damage"]
[]
[null,"Schale of damage"]
[null,"Collapse"]
[null,"Number of fatalities"]
[null,"Number of injured"]
[]
[]
["Progress of damage"]
[]
[]
["Consequence"]
[]
[null,"Direct consequences"]
[null,"Indirect consequences (event imposed)"]
[null,"Indirect consequences (societal imposed)"]
[null,"Total costs of the structure"]
[]
[]
["Indication of the damage"]

{"sheet":"Data","index":19,"n_rows":217,"n_cols":44,"rows_kept":217,"cut":false,"hidden":true,"merged":[]}
[{"$f":"COUNTA(A5:A42)","v":3},{"$f":"COUNTA(B5:B420)","v":213},{"$f":"COUNTA(C5:C34)","v":7},{"$f":"COUNTA(D5:D42)","v":7},{"$f":"COUNTA(E5:E267)","v":121},3,7,{"$f":"COUNTA(H5:H42)","v":2},3,7,3,4,4,3,3,2,3,3,2,2,5,9,4,2,2,{"$f":"COUNTA(Z5:Z42)","v":3},{"$f":"COUNTA(AA5:AA42)","v":5},{"$f":"COUNTA(AB5:AB42)","v":7},3,{"$f":"COUNTA(AD5:AD42)","v":5},{"$f":"COUNTA(AE5:AE42)","v":3},{"$f":"COUNTA(AF5:AF42)","v":3},{"$f":"COUNTA(AG5:AG42)","v":7},2,2,7,{"$f":"COUNTA(AK5:AK42)","v":4},6,2,{"$f":"COUNTA(AN5:AN42)","v":6},{"$f":"COUNTA(AO5:AO42)","v":5},{"$f":"COUNTA(AP5:AP42)","v":6},{"$f":"COUNTA(AQ5:AQ42)","v":4},{"$f":"COUNTA(AR5:AR42)","v":13}]
[1,2,3,4,5,6,7,8,9,10,11,12,13,14,15,16,17,18,19,20,21,22,23,24,25,26,27,28,29,30,31,32,33,34,35,36,37,38,39,40,41,42,43,44]
["titel","Länder","Bauwerke","Code","Year","Service class","kind of structure","connection","kind of failure"," phase","phase II","phase II","phase II","phase II","phase II","phase II","phase II"]
[]
["Prof. Dr.","Afghanistan","Office building","Eurocode",1900,"Service class 1","Beam / Girder","Fixed support","Human error","Conceptual design","Wrong definition of the requirements","Not considered load or load combination ","Failure in the calculation","Improper fabrication","Misinterpretation of drawings","Change of use","Improper maintenance","Error in specification of response","Missing qualification for benefit","Performance","Engineers ignorance","Tracer","Sabotage","Construction","Load","Member","Tension member","No fastener","Fixed support","Concrete","Main (load bearing) structure","Roof","Stability failure","Structure","Buckling","Deformation","Tension","Rupture","Perpendicular to grain","Shrink","Deflection","Noise","Storage building","0 - 10'000 EUR"]
["Dr.","Albania","Education centre (school, university, etc.)","ASTM",1901,"Service class 2","Curved beam /Curved girder","Pin joint","Uncontrollable action","Structural analysis","Wrong definition of the structural concept","Failure in the structural model","Misinterpretation of units","Improper grading","Improper material storing ","Misc.","Improper inspection ","Error in communication","Maloperation","Motivation","Neglecting the technical rules","Arcitect","Unpredictable loading","Code assumption","Resistance / Material","Connection","Compression member","Nail","Pin joint","Wood","Secondary structure","Floor","Member failure","Member","Lateral buckling","Tensile stress longitudinal to the grain","Pressure","Cracks","Longitudinal to grain","Swell","Crushing","Cracks (wood)","Hall","10'000 - 50'000 EUR"]
["Dipl. Ing.","Algeria","Infrastructure","DIN",1902,"Service class 3","Frame",null,"State of the art (applied but not appropriate)","Dimensioning","Misc.","Improper detail","Not considered limit state","Misc.","Misc.",null,"Misc.","Error in cooperation",null,null,"Misinterpretation of the code","Structural engineer","Unpredictable material behaviour",null,null,"Support","Bending member","Nail plate","Misc.","Adhesive interface","Bracing","Wall","Connection failure",null,null,"Tensile stress perpendicular to the grain","Shearing stress","Deformation",null,"Discoloration","Displacement","Cracks (adhesive)","Bridge","50'000 - 100'000 EUR"]
[null,"American Samoa","Sports hall","SIA",1903,null,"Framework",null,null,"Material fabrication (grading)",null,"Misc.","Misc.",null,null,null,null,null,null,null,"Mistake","Brick layer","Misc.",null,null,null,"Continuous beam","Screw",null,"Steel",null,null,"Fatigue",null,null,"Pressure","Misc.","Increased timber moisture",null,"Exceeding timber moisture","Settlement","Deformation","Misc.","100'000 - 250'000 EUR"]
[null,"Andorra","Hospital","ISO",1904,null,"Biaxial beam system",null,null,"Execution",null,null,null,null,null,null,null,null,null,null,"Misc.","Carpenter",null,null,null,null,"Misc.","Dowel",null,"Misc.",null,null,"Fungi",null,null,"Lateral pressure",null,"Corrosion",null,"Wood-destroying fungi","Misc.","None",null,"250'000 - 500'000 EUR"]
[null,"Angola","Residential building","ÖNORM",1905,null,"Slab",null,null,"Use",null,null,null,null,null,null,null,null,null,null,null,"Building fitter",null,null,null,null,null,"Adhesive",null,null,null,null,"Insects",null,null,"Shearing stress",null,"Misc.",null,"Misc.",null,"Misc.",null,"500'000 - 1'000'000 EUR"]
[null,"Antigua and Barbuda","Misc.","Misc.",1906,null,"Shell",null,null,"Conservation",null,null,null,null,null,null,null,null,null,null,null,"Roofer",null,null,null,null,null,"Misc.",null,null,null,null,"Misc.",null,null,"Misc.",null,null,null,null,null,null,null,"1'000'000 - 5'000'000 EUR"]
[null,"Argentina",null,null,1907,null,null,null,null,null,null,null,null,null,null,null,null,null,null,null,null,"Materiel manufacturer",null,null,null,null,null,null,null,null,null,null,null,null,null,null,null,null,null,null,null,null,null,"5'000'000 - 10'000'000 EUR"]
[null,"Armenia",null,null,1908,null,null,null,null,null,null,null,null,null,null,null,null,null,null,null,null,"Misc.",null,null,null,null,null,null,null,null,null,null,null,null,null,null,null,null,null,null,null,null,null,"10'000'000 - 50'000'000 EUR"]
[null,"Aruba",null,null,1909,null,null,null,null,null,null,null,null,null,null,null,null,null,null,null,null,null,null,null,null,null,null,null,null,null,null,null,null,null,null,null,null,null,null,null,null,null,null,"50'000'000 - 100'000'000 EUR"]
[null,"Australia",null,null,1910,null,null,null,null,null,null,null,null,null,null,null,null,null,null,null,null,null,null,null,null,null,null,null,null,null,null,null,null,null,null,null,null,null,null,null,null,null,null,"100'000'000 - 500'000'000 EUR"]
[null,"Austria",null,null,1911,null,null,null,null,null,null,null,null,null,null,null,null,null,null,null,null,null,null,null,null,null,null,null,null,null,null,null,null,null,null,null,null,null,null,null,null,null,null,"500'000'000 - 1'000'000'000 EUR"]
[null,"Azerbaijan",null,null,1912,null,null,null,null,null,null,null,null,null,null,null,null,null,null,null,null,null,null,null,null,null,null,null,null,null,null,null,null,null,null,null,null,null,null,null,null,null,null,">1'000'000'000 EUR"]
[null,"Bahamas, The",null,null,1913]
[null,"Bahrain",null,null,1914]
[null,"Bangladesh",null,null,1915]
[null,"Barbados",null,null,1916]
[null,"Belarus",null,null,1917]
[null,"Belgium",null,null,1918]
[null,"Belize",null,null,1919]
[null,"Benin",null,null,1920]
[null,"Bermuda",null,null,1921]
[null,"Bhutan",null,null,1922]
[null,"Bolivia",null,null,1923]
[null,"Bosnia and Herzegovina",null,null,1924]
[null,"Botswana",null,null,1925]
[null,"Brazil",null,null,1926]
[null,"Brunei Darussalam",null,null,1927]
[null,"Bulgaria",null,null,1928]
[null,"Burkina Faso",null,null,1929]
[null,"Burundi",null,null,1930]
[null,"Cambodia",null,null,1931]
[null,"Cameroon",null,null,1932]
[null,"Canada",null,null,1933]
[null,"Cape Verde",null,null,1934]
[null,"Cayman Islands",null,null,1935]
[null,"Central African Republic",null,null,1936]
[null,"Chad",null,null,1937]
[null,"Channel Islands",null,null,1938]
[null,"Chile",null,null,1939]
[null,"China",null,null,1940]
[null,"Colombia",null,null,1941]
[null,"Comoros",null,null,1942]
[null,"Congo, Dem. Rep.",null,null,1943]
[null,"Congo, Rep.",null,null,1944]
[null,"Costa Rica",null,null,1945]
[null,"Côte d'Ivoire",null,null,1946]
[null,"Croatia",null,null,1947]
[null,"Cuba",null,null,1948]
[null,"Cyprus",null,null,1949]
[null,"Czech Republic",null,null,1950]
[null,"Denmark",null,null,1951]
[null,"Djibouti",null,null,1952]
[null,"Dominica",null,null,1953]
[null,"Dominican Republic",null,null,1954]
[null,"Ecuador",null,null,1955]
[null,"Egypt, Arab Rep.",null,null,1956]
[null,"El Salvador",null,null,1957]
[null,"Equatorial Guinea",null,null,1958]
[null,"Eritrea",null,null,1959]
[null,"Estonia",null,null,1960]
[null,"Ethiopia",null,null,1961]
[null,"Faeroe Islands",null,null,1962]
[null,"Fiji",null,null,1963]
[null,"Finland",null,null,1964]
[null,"France",null,null,1965]
[null,"French Polynesia",null,null,1966]
[null,"Gabon",null,null,1967]
[null,"Gambia, The",null,null,1968]
[null,"Georgia",null,null,1969]
[null,"Germany",null,null,1970]
[null,"Ghana",null,null,1971]
[null,"Gibraltar",null,null,1972]
[null,"Greece",null,null,1973]
[null,"Greenland",null,null,1974]
[null,"Grenada",null,null,1975]
[null,"Guam",null,null,1976]
[null,"Guatemala",null,null,1977]
[null,"Guinea",null,null,1978]
[null,"Guinea-Bissau",null,null,1979]
[null,"Guyana",null,null,1980]
[null,"Haiti",null,null,1981]
[null,"Honduras",null,null,1982]
[null,"Hong Kong SAR, China",null,null,1983]
[null,"Hungary",null,null,1984]
[null,"Iceland",null,null,1985]
[null,"India",null,null,1986]
[null,"Indonesia",null,null,1987]
[null,"Iran, Islamic Rep.",null,null,1988]
[null,"Iraq",null,null,1989]
[null,"Ireland",null,null,1990]
[null,"Isle of Man",null,null,1991]
[null,"Israel",null,null,1992]
[null,"Italy",null,null,1993]
[null,"Jamaica",null,null,1994]
[null,"Japan",null,null,1995]
[null,"Jordan",null,null,1996]
[null,"Kazakhstan",null,null,1997]
[null,"Kenya",null,null,1998]
[null,"Kiribati",null,null,1999]
[null,"Korea, Dem. Rep.",null,null,2000]
[null,"Korea, Rep.",null,null,2001]
[null,"Kosovo",null,null,2002]
[null,"Kuwait",null,null,2003]
[null,"Kyrgyz Republic",null,null,2004]
[null,"Lao PDR",null,null,2005]
[null,"Latvia",null,null,2006]
[null,"Lebanon",null,null,2007]
[null,"Lesotho",null,null,2008]
[null,"Liberia",null,null,2009]
[null,"Libya",null,null,2010]
[null,"Liechtenstein",null,null,2011]
[null,"Lithuania",null,null,2012]
[null,"Luxembourg",null,null,2013]
[null,"Macao SAR, China",null,null,2014]
[null,"Macedonia, FYR",null,null,2015]
[null,"Madagascar",null,null,2016]
[null,"Malawi",null,null,2017]
[null,"Malaysia",null,null,2018]
[null,"Maldives",null,null,2019]
[null,"Mali",null,null,2020]
[null,"Malta"]
[null,"Marshall Islands"]
[null,"Mauritania"]
[null,"Mauritius"]
[null,"Mayotte"]
[null,"Mexico"]
[null,"Micronesia, Fed. Sts."]
[null,"Moldova"]
[null,"Monaco"]
[null,"Mongolia"]
[null,"Montenegro"]
[null,"Morocco"]
[null,"Mozambique"]
[null,"Myanmar"]
[null,"Namibia"]
[null,"Nepal"]
[null,"Netherlands"]
[null,"Netherlands Antilles"]
[null,"New Caledonia"]
[null,"New Zealand"]
[null,"Nicaragua"]
[null,"Niger"]
[null,"Nigeria"]
[null,"Northern Mariana Islands"]
[null,"Norway"]
[null,"Oman"]
[null,"Pakistan"]
[null,"Palau"]
[null,"Panama"]
[null,"Papua New Guinea"]
[null,"Paraguay"]
[null,"Peru"]
[null,"Philippines"]
[null,"Poland"]
[null,"Portugal"]
[null,"Puerto Rico"]
[null,"Qatar"]
[null,"Romania"]
[null,"Russian Federation"]
[null,"Rwanda"]
[null,"Samoa"]
[null,"San Marino"]
[null,"São Tomé and Principe"]
[null,"Saudi Arabia"]
[null,"Senegal"]
[null,"Serbia"]
[null,"Seychelles"]
[null,"Sierra Leone"]
[null,"Singapore"]
[null,"Slovak Republic"]
[null,"Slovenia"]
[null,"Solomon Islands"]
[null,"Somalia"]
[null,"South Africa"]
[null,"Spain"]
[null,"Sri Lanka"]
[null,"St. Kitts and Nevis"]
[null,"St. Lucia"]
[null,"St. Vincent and the Grenadines"]
[null,"Sudan"]
[null,"Suriname"]
[null,"Swaziland"]
[null,"Sweden"]
[null,"Switzerland"]
[null,"Syrian Arab Republic"]
[null,"Tajikistan"]
[null,"Tanzania"]
[null,"Thailand"]
[null,"Timor-Leste"]
[null,"Togo"]
[null,"Tonga"]
[null,"Trinidad and Tobago"]
[null,"Tunisia"]
[null,"Turkey"]
[null,"Turkmenistan"]
[null,"Turks and Caicos Islands"]
[null,"Tuvalu"]
[null,"Uganda"]
[null,"Ukraine"]
[null,"United Arab Emirates"]
[null,"United Kingdom"]
[null,"United States"]
[null,"Uruguay"]
[null,"Uzbekistan"]
[null,"Vanuatu"]
[null,"Venezuela, RB"]
[null,"Vietnam"]
[null,"Virgin Islands (U.S.)"]
[null,"West Bank and Gaza"]
[null,"Yemen, Rep."]
[null,"Zambia"]
[null,"Zimbabwe"]